bitfinex-derivatives/quotes_BNBF0:USTF0_20250807
["timestamp","ask_amount","ask_price","bid_price","bid_amount"]
[1754554211810,0.86920866,767.62,766.59,0.22676993]
[1754554212314,0.86920866,767.88,766.6,1.284]
[1754554212808,0.86920866,767.83,766.6,1.284]
[1754554213513,0.22661192,768.42,766.6,1.284]
[1754554213514,0.86920866,767.85,766.6,1.284]
[1754554214314,0.86920866,767.82,766.6,1.284]
[1754554214514,0.86920866,767.78,766.6,1.284]
[1754554214717,0.86920866,767.75,766.6,1.284]
[1754554215218,0.86920866,767.79,766.6,1.284]
[1754554215515,0.86920866,767.8,766.6,1.284]
[1754554215815,0.86920866,767.76,766.6,1.284]
[1754554216315,0.86920866,767.77,766.6,1.284]
[1754554216714,0.86920866,767.76,766.6,1.284]
[1754554217715,0.86920866,767.8,766.6,1.284]
[1754554218519,0.86920866,767.76,766.6,1.284]
[1754554218725,0.86920866,767.72,766.6,1.284]
[1754554218915,0.86920866,767.73,766.6,1.284]
[1754554219515,0.86920866,767.76,766.6,1.284]
[1754554219818,0.86920866,767.77,766.6,1.284]
[1754554220121,0.86920866,767.85,766.6,1.284]
[1754554221616,0.86920866,767.81,766.6,1.284]
[1754554222320,0.86920866,767.8,766.6,1.284]
[1754554223421,0.86920866,767.76,766.6,1.284]
[1754554224018,0.86920866,767.72,766.6,1.284]
[1754554224217,0.86920866,767.77,766.6,1.284]
[1754554224717,0.86920866,767.83,766.6,1.284]
[1754554224922,0.86920866,767.82,766.6,1.284]
[1754554225420,0.86920866,767.81,766.6,1.284]
[1754554225618,0.86920866,767.69,766.6,1.284]
[1754554225822,0.86920866,767.47,766.6,1.284]
[1754554226317,0.86920866,767.48,766.6,1.284]
[1754554226523,0.86920866,767.54,766.6,1.284]
[1754554226719,0.86920866,767.6,766.6,1.284]
[1754554227223,0.86920866,767.58,766.6,1.284]
[1754554227421,0.86920866,767.82,766.6,1.284]
[1754554227826,0.86920866,767.84,766.6,1.284]
[1754554228323,1.169671,768.12,766.6,1.284]
[1754554228324,0.86920866,767.83,766.6,1.284]
[1754554229528,0.86920866,767.84,766.6,1.284]
[1754554229728,0.86920866,767.83,766.6,1.284]
[1754554230224,0.86920866,767.82,766.6,1.284]
[1754554231026,0.86920866,767.75,766.6,1.284]
[1754554231228,0.86920866,767.71,766.6,1.284]
[1754554231826,0.86920866,767.66,766.6,1.284]
[1754554232329,0.86920866,767.64,766.6,1.284]
[1754554232825,0.86920866,767.62,766.6,1.284]
[1754554233025,0.86920866,767.67,766.6,1.284]
[1754554233224,0.86920866,767.65,766.6,1.284]
[1754554234028,0.86920866,767.66,766.6,1.284]
[1754554234228,0.86920866,767.56,766.6,1.284]
[1754554234529,0.86920866,767.69,766.6,1.284]
[1754554235328,0.86920866,767.68,766.6,1.284]
[1754554236030,0.86920866,767.66,766.6,1.284]
[1754554236224,0.22661192,768.42,766.6,1.284]
[1754554236225,0.86920866,767.65,766.6,1.284]
[1754554236925,0.86920866,767.52,766.6,1.284]
[1754554237126,0.86920866,767.54,766.6,1.284]
[1754554237429,0.86920866,767.48,766.6,1.284]
[1754554237728,0.86920866,767.42,766.6,1.284]
[1754554237929,0.86920866,767.47,766.6,1.284]
[1754554238325,0.86920866,767.48,766.6,1.284]
[1754554238528,0.86920866,767.69,766.6,1.284]
[1754554238726,0.86920866,767.67,766.6,1.284]
[1754554239225,0.86920866,767.65,766.6,1.284]
[1754554239425,0.86920866,767.64,766.6,1.284]
[1754554240230,0.86920866,767.62,766.6,1.284]
[1754554240426,0.86920866,767.63,766.6,1.284]
[1754554240631,0.86920866,767.67,766.6,1.284]
[1754554241231,0.86920866,767.65,766.6,1.284]
[1754554241832,0.86920866,767.58,766.6,1.284]
[1754554242027,0.86920866,767.6,766.6,1.284]
[1754554242230,0.86920866,767.57,766.6,1.284]
[1754554242528,0.86920866,767.68,766.6,1.284]
[1754554243134,0.86920866,767.69,766.6,1.284]
[1754554243333,0.86920866,767.65,766.6,1.284]
[1754554243530,0.86920866,767.59,766.6,1.284]
[1754554243733,1.169671,767.78,766.6,1.284]
[1754554243734,0.86920866,767.58,766.6,1.284]
[1754554244136,0.86920866,767.54,766.6,1.284]
[1754554244433,0.86920866,767.56,766.6,1.284]
[1754554245334,0.86920866,767.45,766.6,1.284]
[1754554246037,0.86920866,767.47,766.6,1.284]
[1754554246337,0.86920866,767.45,766.6,1.284]
[1754554246733,0.86920866,767.47,766.6,1.284]
[1754554247232,0.86920866,767.45,766.6,1.284]
[1754554247437,0.86920866,767.41,766.6,1.284]
[1754554248336,1.169671,767.77,766.6,1.284]
[1754554248337,0.86920866,767.48,766.6,1.284]
[1754554248841,0.86920866,767.4,766.6,1.284]
[1754554249340,0.86920866,767.39,766.6,1.284]
[1754554249635,0.86920866,767.4,766.6,1.284]
[1754554250336,0.86920866,767.34,766.6,1.284]
[1754554250838,0.86920866,767.33,766.6,1.284]
[1754554251234,0.86920866,767.32,766.6,1.284]
[1754554251435,0.86920866,767.31,766.6,1.284]
[1754554251635,0.86920866,767.25,766.6,1.284]
[1754554251835,0.86920866,767.24,766.6,1.284]
[1754554252235,0.86920866,767.23,766.6,1.284]
[1754554252438,0.86920866,767.24,766.6,1.284]
[1754554253537,0.86920866,767.22,766.6,1.284]
[1754554254838,1.169671,767.48,766.6,1.284]
[1754554254839,0.86920866,767.1,766.6,1.284]
[1754554255037,4.093849,769.27,766.6,1.284]
[1754554255038,0.86920866,767.07,766.6,1.284]
[1754554255238,0.86920866,767.08,766.6,1.284]
[1754554255640,0.86920866,767.09,766.6,1.284]
[1754554256338,0.86920866,767.1,766.6,1.284]
[1754554258445,0.86920866,767.1,766.47,0.22678766]
[1754554258744,0.86920866,767.11,766.47,0.22678766]
[1754554259343,0.86920866,767.14,766.47,0.22678766]
[1754554259639,0.86920866,767.15,766.47,0.22678766]
[1754554259942,0.86920866,767.14,766.47,0.22678766]
[1754554260441,0.86920866,767.2,766.47,0.22678766]
[1754554260841,0.86920866,767.19,766.47,1.09911454]
[1754554261044,0.86920866,767.2,766.48,0.915]
[1754554261442,0.86920866,767.19,766.48,0.915]
[1754554263047,0.86920866,767.22,766.48,0.915]
[1754554263248,0.86920866,767.28,766.53,0.87232688]
[1754554263644,0.86920866,767.4,766.57,0.87232688]
[1754554265844,4.093849,769.06,766.48,0.915]
[1754554265845,0.86920866,767.39,766.56,0.87232688]
[1754554267547,0.86920866,767.4,766.56,0.87232688]
[1754554268451,0.86920866,767.42,766.58,0.87232688]
[1754554269152,0.86920866,767.39,766.59,0.87232688]
[1754554269347,0.86920866,767.4,766.59,0.87232688]
[1754554270649,0.86920866,767.43,766.63,0.87232688]
[1754554271255,0.86920866,767.43,766.62,0.87232688]
[1754554271551,0.86920866,767.44,766.62,0.87232688]
[1754554271753,0.86920866,767.43,766.62,0.87232688]
[1754554271952,0.86920866,767.42,766.63,0.87232688]
[1754554272954,0.86920866,767.41,766.62,0.87232688]
[1754554273755,0.86920866,767.42,766.61,0.87232688]
[1754554274456,0.86920866,767.43,766.61,0.87232688]
[1754554275160,2.924178,768.53,766.64,0.87232688]
[1754554275161,0.86920866,767.38,766.64,0.87232688]
[1754554275360,0.86920866,767.4,766.65,0.87232688]
[1754554275861,0.86920866,767.42,766.67,0.87232688]
[1754554277360,0.86920866,767.43,766.67,0.87232688]
[1754554278359,0.86920866,767.44,766.66,0.87232688]
[1754554278961,0.86920866,767.44,766.48,0.915]
[1754554278962,0.86920866,767.44,766.67,0.87232688]
[1754554279360,0.86920866,767.44,766.66,0.87232688]
[1754554280362,0.86920866,767.45,766.66,0.87232688]
[1754554281263,0.86920866,767.44,766.66,0.87232688]
[1754554283365,0.86920866,767.44,766.65,0.87232688]
[1754554283568,0.86920866,767.43,766.67,0.87232688]
[1754554284369,0.86920866,767.42,766.67,0.87232688]
[1754554285969,0.86920866,767.43,766.67,0.87232688]
[1754554286271,0.86920866,767.43,766.66,0.87232688]
[1754554288377,0.86920866,767.41,766.67,0.87232688]
[1754554289380,0.86920866,767.42,766.67,0.87232688]
[1754554289580,0.86920866,767.41,766.67,0.87232688]
[1754554290279,0.86920866,767.42,766.68,0.87232688]
[1754554290477,0.86920866,767.43,766.68,0.87232688]
[1754554290979,0.86920866,767.42,766.68,0.87232688]
[1754554291379,0.86920866,767.43,766.68,0.87232688]
[1754554292577,0.86920866,767.44,766.69,0.87232688]
[1754554293181,0.86920866,767.43,766.69,0.87232688]
[1754554293381,0.86920866,767.44,766.68,0.87232688]
[1754554293580,0.86920866,767.43,766.68,0.87232688]
[1754554293780,0.86920866,767.44,766.68,0.87232688]
[1754554294382,0.86920866,767.45,766.68,0.87232688]
[1754554294983,0.86920866,767.44,766.68,0.87232688]
[1754554295677,0.86920866,767.44,766.55,1.166122]
[1754554295678,0.86920866,767.44,766.69,0.87232688]
[1754554296083,0.86920866,767.43,766.7,0.87232688]
[1754554296379,0.86920866,767.46,766.67,0.87232688]
[1754554296778,0.86920866,767.47,766.66,0.87232688]
[1754554298681,0.86920866,767.5,766.69,0.87232688]
[1754554299283,2.924178,768.4,766.69,0.87232688]
[1754554299284,0.86920866,767.52,766.69,0.87232688]
[1754554300282,0.86920866,767.54,766.68,0.87232688]
[1754554306192,0.86920866,767.53,766.68,0.87232688]
[1754554306392,0.86920866,767.54,766.68,0.87232688]
[1754554306689,0.86920866,767.53,766.69,0.87232688]
[1754554307790,0.86920866,767.6,766.64,0.87232688]
[1754554307989,0.86920866,767.6,766.65,0.87232688]
[1754554308290,0.86920866,767.6,766.64,0.87232688]
[1754554308693,0.86920866,767.6,766.65,0.87232688]
[1754554308891,0.86920866,767.6,766.64,0.87232688]
[1754554309090,0.86920866,767.59,766.64,0.87232688]
[1754554309293,0.86920866,767.59,766.65,0.87232688]
[1754554309693,0.86920866,767.6,766.65,0.87232688]
[1754554310294,0.86920866,767.59,766.65,0.87232688]
[1754554312397,0.86920866,767.58,766.66,0.87232688]
[1754554313394,0.86920866,767.56,766.66,0.87232688]
[1754554314297,0.86920866,767.56,766.48,0.915]
[1754554314298,0.86920866,767.55,766.67,0.87232688]
[1754554314794,0.86920866,767.56,766.67,0.87232688]
[1754554315295,0.86920866,767.57,766.66,0.87232688]
[1754554315597,0.86920866,767.58,766.67,0.87232688]
[1754554315800,0.86920866,767.61,766.7,0.87232688]
[1754554316197,0.86920866,767.6,766.69,0.87232688]
[1754554316397,0.86920866,767.59,766.7,0.87232688]
[1754554317397,0.86920866,767.57,766.72,0.87232688]
[1754554317700,4.093849,769.24,766.48,0.915]
[1754554317701,0.86920866,767.54,766.74,0.87232688]
[1754554318400,0.86920866,767.52,766.76,0.87232688]
[1754554318600,0.86920866,767.52,766.75,0.87232688]
[1754554318997,0.86920866,767.52,766.76,0.87232688]
[1754554319300,0.86920866,767.5,766.77,0.87232688]
[1754554319496,1.754506,767.87,766.59,1.166122]
[1754554319497,0.86920866,767.49,766.76,0.87232688]
[1754554320799,0.86920866,767.5,766.76,0.87232688]
[1754554321399,0.86920866,767.49,766.76,0.87232688]
[1754554321600,0.86920866,767.48,766.77,0.87232688]
[1754554322005,0.86920866,767.49,766.77,0.87232688]
[1754554322203,0.86920866,767.48,766.78,0.87232688]
[1754554322403,0.86920866,767.47,766.77,0.87232688]
[1754554322702,0.86920866,767.51,766.81,0.87232688]
[1754554323104,0.86920866,767.52,766.81,0.87232688]
[1754554323407,0.86920866,767.51,766.82,0.87232688]
[1754554323606,0.86920866,767.5,766.81,0.87232688]
[1754554324402,0.86920866,767.51,766.8,0.87232688]
[1754554324602,0.86920866,767.5,766.8,0.87232688]
[1754554325003,0.86920866,767.5,766.81,0.816]
[1754554325308,0.86920866,767.48,766.82,0.87232688]
[1754554326104,1.169671,767.67,766.82,0.87232688]
[1754554326105,0.86920866,767.49,766.82,0.87232688]
[1754554326305,0.86920866,767.47,766.83,0.87232688]
[1754554327204,1.169671,767.64,766.81,0.816]
[1754554327205,0.86920866,767.46,766.84,0.87232688]
[1754554328211,0.86920866,767.46,766.81,0.816]
[1754554328212,0.86920866,767.46,766.83,0.87232688]
[1754554328408,0.86920866,767.46,766.81,0.816]
[1754554328409,0.86920866,767.46,766.84,0.87232688]
[1754554328710,0.86920866,767.47,766.82,0.87232688]
[1754554328910,0.86920866,767.48,766.82,0.87232688]
[1754554329109,0.86920866,767.47,766.82,0.87232688]
[1754554330511,0.86920866,767.46,766.82,0.87232688]
[1754554330712,0.86920866,767.48,766.81,1.68832688]
[1754554331908,0.86920866,767.47,766.81,1.68832688]
[1754554332113,2.924178,768.62,766.81,0.816]
[1754554332114,0.86920866,767.5,766.81,0.816]
[1754554335923,0.86920866,767.51,766.81,0.816]
[1754554337723,0.86920866,767.5,766.81,0.816]
[1754554340522,0.86920866,767.49,766.81,0.816]
[1754554340726,0.86920866,767.33,766.82,0.87232688]
[1754554341023,0.86920866,767.57,766.81,0.816]
[1754554341625,0.86920866,767.63,766.81,0.816]
[1754554343028,0.86920866,767.64,766.81,0.816]
[1754554343323,0.86920866,767.65,766.81,0.816]
[1754554343628,0.86920866,767.69,766.81,0.816]
[1754554343825,0.86920866,767.71,766.81,0.816]
[1754554344025,0.86920866,767.71,766.89,0.87232688]
[1754554344329,0.86920866,767.56,767.0,0.87232688]
[1754554345324,0.86920866,767.55,767.0,0.87232688]
[1754554346129,0.86920866,767.56,766.99,0.87232688]
[1754554347129,0.86920866,767.56,766.98,0.87232688]
[1754554347328,0.86920866,767.57,766.99,0.87232688]
[1754554347524,0.86920866,767.57,767.01,0.87232688]
[1754554348225,0.86920866,767.58,767.0,0.87232688]
[1754554349226,0.86920866,767.59,767.0,0.87232688]
[1754554349526,0.86920866,767.58,767.0,0.87232688]
[1754554350130,0.86920866,767.59,766.99,0.87232688]
[1754554351032,0.86920866,767.56,767.01,0.87232688]
[1754554351226,0.86920866,767.58,767.01,0.87232688]
[1754554351529,0.86920866,767.7,766.93,0.87232688]
[1754554352729,0.86920866,767.69,766.92,0.87232688]
[1754554353130,0.86920866,767.7,766.91,0.87232688]
[1754554354027,0.86920866,767.7,766.9,0.87232688]
[1754554354227,0.86920866,767.71,766.9,0.87232688]
[1754554357133,0.86920866,767.72,766.89,0.87232688]
[1754554357333,0.86920866,767.74,766.88,0.87232688]
[1754554357628,0.86920866,767.74,766.87,0.87232688]
[1754554360134,0.86920866,767.75,766.87,0.87232688]
[1754554360937,0.86920866,767.74,766.86,0.87232688]
[1754554361230,0.86920866,767.7,766.88,0.87232688]
[1754554363933,0.86920866,767.69,766.88,0.87232688]
[1754554364135,0.86920866,767.7,766.88,0.87232688]
[1754554366039,0.86920866,767.7,766.87,0.87232688]
[1754554366237,0.86920866,767.67,766.88,0.87232688]
[1754554367242,0.86920866,767.62,766.92,0.87232688]
[1754554368143,0.86920866,767.62,766.93,0.87232688]
[1754554368340,0.86920866,767.65,766.91,0.87232688]
[1754554368745,0.86920866,767.79,766.81,1.68832688]
[1754554368944,0.86920866,767.8,766.81,1.68832688]
[1754554369445,0.86920866,767.79,766.81,1.68832688]
[1754554371150,0.86920866,767.8,766.81,1.68832688]
[1754554372250,0.86920866,767.79,766.81,1.68832688]
[1754554373852,0.86920866,767.8,766.82,0.87232688]
[1754554374354,0.22671231,768.02,766.82,0.87232688]
[1754554374355,0.86920866,767.79,766.82,0.87232688]
[1754554375555,0.86920866,767.8,766.83,0.87232688]
[1754554378559,0.86920866,767.7,766.9,0.87232688]
[1754554378856,0.86920866,767.66,766.92,0.87232688]
[1754554380959,0.86920866,767.66,766.93,0.87232688]
[1754554381263,0.86920866,767.68,766.92,0.87232688]
[1754554382161,0.86920866,767.67,766.92,0.87232688]
[1754554384564,0.86920866,767.6,766.97,0.87232688]
[1754554386368,0.86920866,767.59,766.97,0.87232688]
[1754554387468,0.86920866,767.59,766.98,1.301]
[1754554388374,0.86920866,767.63,766.98,1.301]
[1754554390279,0.86920866,767.84,766.98,1.301]
[1754554390581,0.86920866,767.73,766.98,1.301]
[1754554391679,0.86920866,767.67,766.98,1.301]
[1754554391981,0.86920866,767.64,766.98,1.301]
[1754554393278,0.86920866,767.63,766.98,1.301]
[1754554394580,0.86920866,767.47,766.98,1.301]
[1754554394984,0.86920866,767.46,766.98,1.301]
[1754554395185,0.86920866,767.44,766.98,1.301]
[1754554395481,0.86920866,767.4,766.98,1.301]
[1754554396280,0.86920866,767.52,766.98,1.301]
[1754554396482,0.86920866,767.42,766.98,1.301]
[1754554397386,0.86920866,767.43,766.98,1.301]
[1754554398084,0.86920866,767.39,766.98,1.301]
[1754554398282,0.86920866,767.4,766.98,1.301]
[1754554400385,0.86920866,767.41,766.98,1.301]
[1754554401384,0.22669681,768.11,766.98,1.301]
[1754554401385,0.86920866,767.42,766.98,1.301]
[1754554402290,0.86920866,767.44,766.98,1.301]
[1754554403190,0.86920866,767.4,766.98,1.301]
[1754554403387,0.86920866,767.41,766.98,1.301]
[1754554404387,0.86920866,767.43,766.98,1.301]
[1754554404586,0.86920866,767.52,766.98,1.301]
[1754554404791,0.86920866,767.48,766.98,1.301]
[1754554405190,0.86920866,767.45,766.98,1.301]
[1754554405386,0.86920866,767.47,766.98,1.301]
[1754554405789,0.86920866,767.46,766.98,1.301]
[1754554406292,0.86920866,767.47,766.98,1.301]
[1754554407393,0.86920866,767.45,766.98,1.301]
[1754554408293,0.86920866,767.44,766.98,1.301]
[1754554408493,0.86920866,767.33,766.98,1.301]
[1754554408693,0.86920866,767.31,766.98,1.301]
[1754554408893,0.86920866,767.32,766.98,1.301]
[1754554409190,0.86920866,767.31,766.98,1.301]
[1754554409393,0.86920866,767.29,766.98,1.301]
[1754554410391,0.86920866,767.3,766.98,1.301]
[1754554411392,0.86920866,767.31,766.98,1.301]
[1754554411896,0.86920866,767.38,766.98,1.301]
[1754554412594,0.22669681,768.11,766.98,1.301]
[1754554412595,0.86920866,767.39,766.98,1.301]
[1754554412892,0.86920866,767.4,766.98,1.301]
[1754554413194,0.86920866,767.44,766.98,1.301]
[1754554413394,0.86920866,767.46,766.98,1.301]
[1754554414298,0.86920866,767.48,766.98,1.301]
[1754554415397,0.86920866,767.5,766.98,1.301]
[1754554415996,0.86920866,767.51,766.98,1.301]
[1754554416200,0.86920866,767.5,766.98,1.301]
[1754554416403,0.86920866,767.48,766.98,1.301]
[1754554416698,0.86920866,767.41,766.98,1.301]
[1754554417002,0.86920866,767.4,766.98,1.301]
[1754554417298,0.86920866,767.43,766.98,1.301]
[1754554417502,0.86920866,767.42,766.98,1.301]
[1754554418103,0.86920866,767.43,766.98,1.301]
[1754554418301,0.86920866,767.44,766.98,1.301]
[1754554420200,0.86920866,767.46,766.98,1.301]
[1754554421301,0.86920866,767.41,766.98,1.301]
[1754554422105,0.86920866,767.42,766.98,1.301]
[1754554422502,0.86920866,767.41,766.98,1.301]
[1754554423309,0.86920866,767.53,766.98,1.301]
[1754554423607,0.86920866,767.54,766.98,1.301]
[1754554424907,1.169671,767.72,766.98,1.301]
[1754554425204,0.86787464,767.54,766.98,1.301]
[1754554428509,0.86787464,767.53,766.98,1.301]
[1754554429013,0.86787464,767.52,766.98,1.301]
[1754554431108,0.86787464,767.51,766.98,1.301]
[1754554433114,0.86787464,767.5,766.98,1.301]
[1754554433311,0.86787464,767.43,766.98,1.301]
[1754554433511,0.86787464,767.45,766.98,1.301]
[1754554434216,0.86787464,767.44,766.98,1.301]
[1754554434412,0.86787464,767.48,766.2,0.2268187]
[1754554435213,0.86787464,767.49,766.2,1.09682652]
[1754554435419,0.86787464,767.48,766.2,1.09682652]
[1754554436316,0.86787464,767.47,766.2,1.09682652]
[1754554436516,0.86787464,767.48,766.2,1.09682652]
[1754554437316,0.86787464,767.47,766.2,1.09682652]
[1754554437514,0.86787464,767.47,766.21,0.878]
[1754554438216,0.86787464,767.45,766.21,0.878]
[1754554439116,0.86787464,767.44,766.21,1.74800782]
[1754554441422,0.22669681,768.11,766.21,1.74800782]
[1754554441423,0.86787464,767.43,766.21,1.74800782]
[1754554442220,0.86787464,767.42,766.22,0.87000782]
[1754554442420,0.86787464,767.41,766.22,0.87000782]
[1754554442724,0.86787464,767.42,766.22,0.87000782]
[1754554443325,0.86787464,767.41,766.22,0.87000782]
[1754554443522,0.86787464,767.4,766.23,0.87000782]
[1754554444334,0.86787464,767.36,766.25,0.87000782]
[1754554445332,0.86787464,767.34,766.25,0.87000782]
[1754554445534,0.86787464,767.34,766.26,0.87000782]
[1754554446335,0.86787464,767.31,766.26,0.87000782]
[1754554446732,0.86787464,767.32,766.27,0.87000782]
[1754554447235,0.86787464,767.3,766.27,0.87000782]
[1754554447435,0.86787464,767.3,766.28,0.87000782]
[1754554448032,0.86787464,767.35,766.24,0.87000782]
[1754554448332,0.86787464,767.32,766.25,0.87000782]
[1754554449432,0.86787464,767.29,766.27,0.87000782]
[1754554450335,0.86787464,767.26,766.28,0.87000782]
[1754554450836,0.86787464,767.26,766.29,0.87000782]
[1754554451237,0.86787464,767.24,766.3,0.87000782]
[1754554451433,0.86787464,767.25,766.31,0.87000782]
[1754554451635,0.86787464,767.28,766.34,0.87000782]
[1754554452334,0.86787464,767.26,766.34,0.87000782]
[1754554452839,0.86787464,767.25,766.35,0.87000782]
[1754554453435,0.86787464,767.23,766.36,0.87000782]
[1754554453637,0.86787464,767.22,766.35,0.87000782]
[1754554454340,0.86787464,767.2,766.36,0.87000782]
[1754554455235,1.169671,767.37,766.36,0.87000782]
[1754554455236,0.86787464,767.19,766.36,0.87000782]
[1754554455435,0.86787464,767.18,766.37,0.87000782]
[1754554456339,0.86787464,767.17,766.38,0.87000782]
[1754554457344,0.86787464,767.17,766.39,0.87000782]
[1754554457542,0.86787464,767.16,766.39,0.87000782]
[1754554457844,0.86787464,767.1,766.43,0.87000782]
[1754554458343,0.86787464,767.11,766.44,0.87000782]
[1754554459245,0.86787464,767.1,766.45,0.87000782]
[1754554461244,0.86787464,767.09,766.46,0.87000782]
[1754554462541,0.86787464,767.16,766.46,0.87000782]
[1754554463746,0.86787464,767.15,766.45,0.87000782]
[1754554463943,0.86787464,767.16,766.46,0.87000782]
[1754554464246,0.86787464,767.17,766.46,0.87000782]
[1754554467548,0.86787464,767.17,766.45,0.87000782]
[1754554467742,0.86787464,767.17,766.46,0.87000782]
[1754554467945,0.86787464,767.28,766.5,0.87000782]
[1754554468445,0.86787464,767.29,766.5,0.87000782]
[1754554470248,0.86787464,767.29,766.49,0.87000782]
[1754554470446,0.86787464,767.28,766.5,0.87000782]
[1754554473454,2.924178,768.29,766.51,0.87000782]
[1754554473455,0.86787464,767.29,766.51,0.87000782]
[1754554473655,0.86787464,767.32,766.54,0.87000782]
[1754554474352,0.86787464,767.33,766.55,0.87000782]
[1754554474551,0.86787464,767.38,766.59,0.87000782]
[1754554475551,0.86787464,767.39,766.59,0.87000782]
[1754554476452,0.86787464,767.39,766.58,0.87000782]
[1754554477351,0.86787464,767.39,766.59,0.87000782]
[1754554477855,0.86787464,767.35,766.61,0.87000782]
[1754554478255,0.86787464,767.37,766.62,0.87000782]
[1754554479256,0.86787464,767.37,766.63,0.87000782]
[1754554479456,0.86787464,767.36,766.64,0.87000782]
[1754554480256,0.86787464,767.35,766.65,0.87000782]
[1754554480456,0.86787464,767.35,766.64,0.87000782]
[1754554480657,0.86787464,767.42,766.6,0.87000782]
[1754554481257,0.86787464,767.41,766.6,0.87000782]
[1754554481457,0.86787464,767.42,766.6,0.87000782]
[1754554482556,0.86787464,767.41,766.6,0.87000782]
[1754554483456,0.86787464,767.41,766.61,0.87000782]
[1754554484759,0.86787464,767.42,766.62,0.87000782]
[1754554485358,0.86787464,767.42,766.61,0.87000782]
[1754554487459,0.86787464,767.43,766.61,0.87000782]
[1754554488863,0.86787464,767.53,766.54,0.87000782]
[1754554489060,0.86787464,767.54,766.55,0.87000782]
[1754554489763,0.86787464,767.55,766.55,0.87000782]
[1754554490564,0.86787464,767.55,766.21,0.878]
[1754554490565,0.86787464,767.54,766.56,0.87000782]
[1754554491265,0.86787464,767.54,766.55,0.87000782]
[1754554493366,0.86787464,767.53,766.54,0.87000782]
[1754554493862,0.86787464,767.54,766.55,0.87000782]
[1754554496165,0.86787464,767.54,766.54,0.87000782]
[1754554496464,0.86787464,767.53,766.54,0.87000782]
[1754554498667,0.86787464,767.52,766.53,0.87000782]
[1754554498865,0.86787464,767.44,766.58,0.87000782]
[1754554499667,0.86787464,767.43,766.59,0.87000782]
[1754554499866,0.86787464,767.43,766.59,1.90400782]
[1754554500673,0.86787464,767.62,766.59,1.034]
[1754554500972,0.86787464,767.51,766.59,1.034]
[1754554502771,0.86787464,767.5,766.59,1.034]
[1754554503168,0.86787464,767.49,766.59,1.034]
[1754554503473,0.86787464,767.47,766.59,1.034]
[1754554504174,0.86787464,767.42,766.59,1.034]
[1754554504474,0.86787464,767.41,766.59,1.034]
[1754554504874,0.86787464,767.32,766.59,1.034]
[1754554505471,0.86787464,767.29,766.59,1.034]
[1754554507070,0.86787464,767.3,766.59,1.034]
[1754554507275,0.86787464,767.31,766.59,1.034]
[1754554508774,0.86787464,767.3,766.59,1.034]
[1754554509176,0.86787464,767.34,766.59,1.034]
[1754554509373,0.86787464,767.33,766.59,1.034]
[1754554510674,0.86787464,767.32,766.59,1.034]
[1754554510873,0.86787464,767.31,766.59,1.034]
[1754554511877,0.86787464,767.31,766.46,0.87000782]
[1754554512174,0.86787464,767.31,766.47,0.87000782]
[1754554513277,0.86787464,767.3,766.47,0.87000782]
[1754554513978,0.86787464,767.31,766.47,0.87000782]
[1754554514278,0.86787464,767.31,766.46,0.87000782]
[1754554514475,0.86787464,767.31,766.47,0.87000782]
[1754554514776,0.86787464,767.31,766.46,0.87000782]
[1754554515179,0.86787464,767.31,766.47,0.87000782]
[1754554515476,0.86787464,767.27,766.49,0.87000782]
[1754554516376,0.86787464,767.25,766.49,0.87000782]
[1754554516982,0.86787464,767.24,766.49,0.87000782]
[1754554517181,0.86787464,767.23,766.49,0.87000782]
[1754554517481,0.86787464,767.23,766.5,0.87000782]
[1754554517677,0.86787464,767.23,766.49,0.87000782]
[1754554518678,0.86787464,767.22,766.5,0.87000782]
[1754554519282,0.86787464,767.21,766.5,0.87000782]
[1754554520378,0.86787464,767.19,766.49,0.87000782]
[1754554520579,0.86787464,767.21,766.49,0.87000782]
[1754554520781,0.86787464,767.22,766.49,0.87000782]
[1754554521381,0.86787464,767.22,766.5,0.87000782]
[1754554522383,0.86787464,767.25,766.48,2.12500782]
[1754554522884,0.86787464,767.24,766.48,2.12500782]
[1754554523281,0.86787464,767.25,766.49,0.87000782]
[1754554523581,0.86787464,767.25,766.5,0.87000782]
[1754554523884,0.86787464,767.26,766.49,0.87000782]
[1754554524480,0.86787464,767.27,766.5,0.87000782]
[1754554525082,0.86787464,767.26,766.51,0.87000782]
[1754554525281,0.86787464,767.26,766.5,0.87000782]
[1754554525584,0.86787464,767.26,766.51,0.87000782]
[1754554527285,0.86787464,767.25,766.51,0.87000782]
[1754554529283,0.86787464,767.25,766.52,0.87000782]